Cogmind - Beta 16 @@@ ROGUE MODE // 2025.11.20 @ 00:30:05 Player: Red Box Result: Destroyed by as-35967 with Assembled Blade Performance ------------- Evolutions (0) 0 Regions Visited (2) 400 Robots Destroyed (27) 135 Value Destroyed (614) 614 Prototype IDs (2) 40 Alien Tech Used (0) 0 Bonus (0) 0 TOTAL SCORE: 1189 Bonus ------- None Cogmind --------- Core Integrity 0/250 Matter 190/300 Energy 236/250 System Corruption 3% Temperature Cool (0) Movement Treading (240) Ox1 Location -10/Mines Parts ------- > --- POWER (1) -------- Ion Engine > --- PROPULSION (2) --- Light Treads Compact Wheel > --- UTILITY (2) ------ Large Storage Unit > --- WEAPON (2) ------- Light Cannon Light Cannon > --- INVENTORY (15) --- Light Nuclear Core Wheel Small Battery (100) High-capacity Matter Pod (200) EM Pulse Gun Spread Laser Spread Laser Spread Laser Spread Laser Light EM Pulse Cannon Light EM Pulse Cannon Light EM Pulse Cannon Hammer Peak State ------------ > --- POWER ------------ Ion Engine > --- PROPULSION ------- Aluminum Leg Aluminum Leg > --- UTILITY ---------- Large Storage Unit Improved Terrain Scanner > --- WEAPON ----------- Light EM Pulse Cannon Light EM Pulse Cannon > --- INVENTORY -------- Ion Engine Light Treads Light Treads Wheel Compact Wheel High-capacity Matter Pod EM Pulse Gun Spread Laser Spread Laser Spread Laser Spread Laser Light EM Pulse Cannon Assault Rifle Assault Rifle Hammer [Rating: 13] Favorites ----------- Power Ion Engine Engine Ion Engine Propulsion Aluminum Leg Treads Light Treads Leg Aluminum Leg Wheel Compact Wheel Utility Improved Terrain Scanner Device Improved Terrain Scanner Storage Large Storage Unit Weapon Light EM Pulse Cannon Energy Gun Spread Laser Energy Cannon Light EM Pulse Cannon Ballistic Gun Assault Rifle Ballistic Cannon Light Cannon Special Weapon Mining Laser Build | -11 -10 -10 ------- Run | Yrd Mat Min Slots Evolved . | . . . Power . | . . . Propulsion . | . . . Utility . | . . . Weapon . | . . . Parts Attached 26 | 7 17 2 Power 2 | 1 1 . Engine 2 | 1 1 . Core . | . . . Reactor . | . . . Propulsion 7 | 2 3 2 Treads 2 | . 1 1 Leg 3 | 2 1 . Wheel 2 | . 1 1 Hover . | . . . Flight . | . . . Utility 4 | 2 2 . Device 1 | 1 . . Storage 3 | 1 2 . Processor . | . . . Hackware . | . . . Protection . | . . . Artifact . | . . . Weapon 13 | 2 11 . Energy Gun 4 | 1 3 . Energy Cannon 4 | . 4 . Ballistic Gun 2 | 1 1 . Ballistic Cannon 2 | . 2 . Launcher . | . . . Special Weapon 1 | . 1 . Impact Weapon . | . . . Slashing Weapon . | . . . Piercing Weapon . | . . . Special Melee Weapon . | . . . Unidentified Prototypes . | . . . Parts Lost 7 | . 4 3 Power 1 | . 1 . Propulsion 4 | . 2 2 Utility 1 | . . 1 Weapon 1 | . 1 . Highest Loss Streak 3 | . 3 2 To Critical Strikes . | . . . Average Backups 11 | 5 10 14 Power . | . . 1 Propulsion 3 | 3 3 2 Utility . | . . 1 Weapon 5 | . 5 9 Tool/Special . | . . . Unused Backups 8 | . 1 7 Power 2 | . 1 1 Propulsion 1 | . . 1 Utility 2 | . . 2 Weapon 3 | . . 3 Tool/Special . | . . . Average Slot Usage (%) 98 | . 98 98 Engine 13 | . 13 14 Treads 3 | . . 14 Leg 19 | . 25 . Wheel 3 | . . 13 Device 13 | . 14 13 Storage 14 | . 14 14 Energy Gun 1 | . 2 . Energy Cannon 22 | . 23 17 Ballistic Cannon 3 | . . 10 Peak Build Rating 13 | 9 13 13 Average Rating 11 | 5 11 12 On Entrance 6 | . 9 11 Avg Prop Armor Cover (%) 11 | . 11 11 Naked Turns . | . . . Heaviest Build 34 | 15 34 34 Greatest Support 20 | 20 20 16 Greatest Overweight (x) 10 | 1 10 2 Average Overweight (x) . | . . 1 Largest Inventory Capacity 15 | 8 15 15 Average Capacity 12 | 7 11 15 Most Carried 15 | 7 15 15 Average Carried 11 | 5 10 14 Final Capacity 15 | 8 15 15 Final Carried 14 | 7 14 13 Class Distribution -------------------- 100% | Mutant Dominant Class ---------------- Mutant | -10/Materials Mutant | -10/Mines Resources | -11 -10 -10 ----------- Run | Yrd Mat Min Matter Collected 819 | 294 462 63 Remotely . | . . . Salvage Created 958 | 146 690 122 Parts 54 | 12 39 3 Haulers Intercepted 1 | . 1 . Recyclers Shooed 1 | . 1 . Parts Field Recycled . | . . . Retrieved Matter . | . . . Parts Self-Destructed . | . . . Prevented . | . . . Parts Restored . | . . . Kills | -11 -10 -10 ------- Run | Yrd Mat Min Combat Hostiles Destroyed 22 | . 16 6 Guns 6 | . 6 . Cannons 14 | . 8 6 AOE 1 | . 1 . Classes Destroyed 7 | 2 4 1 Tunneler 4 | 4 . . Hauler 1 | . 1 . Recycler 2 | 1 1 . Watcher 2 | . 2 . Swarmer 6 | . 6 . Grunt 12 | . 10 2 Assembled 4 | . . 4 Best Kill Streak 5 | 3 5 4 Combat Bots Only 4 | . 4 4 Max Kills in Single Turn 2 | 1 2 1 Gunslinging . | . . . Exploded 1 | . 1 . Melee . | . . . Uniques/NPCs Destroyed . | . . . Combat | -11 -10 -10 -------- Run | Yrd Mat Min Hostile Shots Fired 114 | . 80 34 Missed 28 | . 23 5 Hits 86 | . 57 29 Melee 9 | . . 9 Projectile 77 | . 57 20 Damage Taken 1088 | . 577 511 Core 252 | . 118 134 Absorbed by Shields . | . . . Regen/Repaired (Parts) 54 | . 54 . Core Remaining (%) 100 | 100 . . Volleys Fired 79 | 8 51 20 Largest 2 | 2 2 2 Hottest 130 | 70 130 112 Shots Fired 146 | 16 90 40 Gun 40 | 16 24 . Cannon 104 | . 64 40 Launcher . | . . . Special 2 | . 2 . Kinetic 52 | 8 14 30 Thermal 16 | 8 8 . Explosive . | . . . Electromagnetic 78 | . 68 10 Robot Hit Streak 19 | 4 19 4 Robot Miss Streak 9 | 2 9 3 Penetration Max . | . . . Secondary Targets . | . . . Shots Hit Robots 79 | 8 50 21 Core Hits 41 | 6 27 8 Critical Kills . | . . . Critical Parts Destroyed . | . . . Critical Strikes . | . . . Melee Attacks . | . . . Impact . | . . . Slashing . | . . . Piercing . | . . . Sneak Attacks . | . . . Combat Hostiles . | . . . Follow-up Attacks . | . . . Damage Inflicted 1888 | 109 1371 408 Guns 338 | 109 229 . Cannons 1337 | . 929 408 Explosions 213 | . 213 . Melee . | . . . Ramming . | . . . Kinetic 408 | 47 98 263 Thermal 372 | 62 310 . Explosive . | . . . Electromagnetic 1108 | . 963 145 Impact . | . . . Slashing . | . . . Piercing . | . . . Highest Corruption 3 | . . 3 Average Corruption 3 | . . 3 Corruption Purged . | . . . Corruption Blocked . | . . . Effects 1 | . . 1 Matter Fused 1 | . . 1 Overload Shots . | . . . Overflow Damage 55 | . 34 21 Projectiles 55 | . 34 21 Explosions . | . . . Melee . | . . . Knockbacks 5 | . . 5 Impact . | . . . Kinetic 5 | . . 5 Secondary . | . . . Self-Inflicted Damage 26 | . 26 . Shots 1 | . 1 . Rammed . | . . . Targets Rammed . | . . . Kicked . | . . . Crushed . | . . . Highest Temperature 228 | 18 228 189 Average Temperature 61 | 9 64 76 Received Heat Transfer 260 | . 186 74 Siege Activations . | . . . Martial Activations . | . . . Shielding Activations . | . . . Robots Disrupted . | . . . Combat Hostiles . | . . . Robots Corrupted 1 | . 1 . Combat Hostiles 1 | . 1 . Parts Fried 7 | . 7 . Impact Corruptions . | . . . Robots Melted . | . . . Combat Hostiles . | . . . Parts Melted 1 | . 1 . Heat Transferred 610 | 185 425 . Parts Sabotaged . | . . . Parts Stolen . | . . . Parts Stripped . | . . . Power Chain Reactions 3 | . 3 . Alert | -11 -10 -10 ------- Run | Yrd Mat Min Maximum Alert Level . | . . . Low Security (%) 100 | 100 100 100 Level 1 . | . . . Level 2 . | . . . Level 3 . | . . . Level 4 . | . . . Level 5 . | . . . High Security . | . . . Max Security . | . . . Peak Influence 178 | 10 178 43 Initial 43 | . . 43 Average 60 | 1 82 6 Influence Increases 752 | 25 677 50 Destroy 0b10 Robot/C 360 | . 320 40 Destroy 0b10 Robot/NC 45 | 25 20 . Destroy Leader 86 | . 76 10 Successful Hack 50 | . 50 . Select Force Hacks 60 | . 60 . Disable Machine 30 | . 30 . Destroy Structure 16 | . 16 . Lose Combat Pursuer 105 | . 105 . Influence Decreases 752 | 25 566 161 Entered New Map 68 | . . 68 Time Decay 644 | 25 526 93 Lost Part 40 | . 40 . Squads Dispatched 4 | . 4 . Investigation 4 | . 4 . Extermination . | . . . Reinforcement . | . . . Assault . | . . . Garrison . | . . . Intercept . | . . . Searches Triggered . | . . . Construction Impeded . | . . . Haulers Reinforced . | . . . Active Scanning Responses . | . . . Cargo Convoy Interrupts . | . . . Stealth | -11 -10 -10 --------- Run | Yrd Mat Min Distress Signals 1 | . 1 . Communications Jammed . | . . . Distress Signals . | . . . Times Spotted 40 | . 27 13 Peak Tracking Total 5 | . 4 5 Tactical Retreats 6 | . 5 1 Traps | -11 -10 -10 ------- Run | Yrd Mat Min Traps Triggered 2 | . 2 . Indirectly . | . . . Trap Hack Attempts . | . . . Triggered . | . . . Disarmed . | . . . Reprogrammed . | . . . Reused . | . . . Traps Extracted . | . . . Installed . | . . . Triggered . | . . . Machines | -11 -10 -10 ---------- Run | Yrd Mat Min Machines Disabled 2 | . 2 . Max in Single Turn 1 | . 1 . Machines Repaired . | . . . Machines Dismantled . | . . . Machines Sabotaged . | . . . Overloaded Fab Kills . | . . . Hacking | -11 -10 -10 --------- Run | Yrd Mat Min Machines Accessed 10 | . 10 . Terminals 7 | . 7 . Fabricators . | . . . Repair Stations 1 | . 1 . Recycling Units 2 | . 2 . Scanalyzers . | . . . Garrison Access . | . . . Total Hacks 44 | . 44 . Successful 26 | . 26 . Failed 18 | . 18 . Catastrophic . | . . . Database Lockouts . | . . . Manual 35 | . 35 . Terminals 31 | . 31 . Fabricators . | . . . Repair Stations 5 | . 5 . Recycling Units 8 | . 8 . Scanalyzers . | . . . Garrison Access . | . . . Terminal Hacks 7 | . 7 . Robot Analysis 5 | . 5 . Prototype ID Bank 1 | . 1 . Locate Traps 1 | . 1 . Fabricator Hacks . | . . . Repair Station Hacks 4 | . 4 . Scan Component 2 | . 2 . Repair 2 | . 2 . Recycling Unit Hacks 2 | . 2 . Retrieve Components 2 | . 2 . Scanalyzer . | . . . Garrison Access Hacks . | . . . Unauthorized Hacks 13 | . 13 . Terminals 9 | . 9 . Track 1 | . 1 . Botnet 2 | . 2 . Operators 1 | . 1 . Skim 5 | . 5 . Fabricators . | . . . Repair Stations . | . . . Recycling Units 4 | . 4 . Reject 1 | . 1 . Mask 1 | . 1 . Tunnel 2 | . 2 . Scanalyzers . | . . . Garrison Access . | . . . Data Cores Recovered . | . . . Used . | . . . Hacking Detections 9 | . 9 . Full Trace Events . | . . . Feedback Events . | . . . Feedback Blocked . | . . . Robot Schematics Acquired . | . . . Robots Built . | . . . Authchips . | . . . Time . | . . . Total Robot Build Rating . | . . . Part Schematics Acquired . | . . . Parts Built . | . . . Authchips . | . . . Time . | . . . Total Part Build Rating . | . . . Part Studies Acquired . | . . . Parts Repaired 2 | . 2 . Time 64 | . 64 . Parts Recycled . | . . . Recycled Matter . | . . . Retrieved Matter . | . . . Retrieved Components 15 | . 15 . Parts Scanalyzed . | . . . Part Schematics Acquired . | . . . Parts Damaged . | . . . Bothacking | -11 -10 -10 ------------ Run | Yrd Mat Min Used RIF Installer . | . . . Robots Hacked . | . . . Non-combat . | . . . Combat . | . . . Robot Hacks Applied . | . . . Relay Couplers Released . | . . . Fabnet Peak Effective % . | . . . Robots Rewired . | . . . Allies Hacked . | . . . Hacks Repelled . | . . . Allies | -11 -10 -10 -------- Run | Yrd Mat Min Total Allies . | . . . Largest Group . | . . . Highest-Rated Group . | . . . Highest-Rated Ally . | . . . Total Orders . | . . . Ally Attacks . | . . . Total Damage . | . . . Kills . | . . . Allies Corrupted . | . . . Allies Melted . | . . . Intel | -11 -10 -10 ------- Run | Yrd Mat Min Active Infowar (turns) 1474 | 46 940 488 Terrain 1474 | 46 940 488 Robot Analysis Total 5 | . 5 . Derelict Logs Recovered 1 | . . 1 Drone Launches . | . . . Drone Recoveries . | . . . Exploration | -11 -10 -10 ------------- Run | Yrd Mat Min Turns Passed 2634 | 147 1871 616 Spaces Moved 1432 | 85 931 416 Core 7 | 6 1 . Treads . | . . . Legs 953 | 79 874 . Wheels 472 | . 56 416 Hover . | . . . Flight . | . . . Fastest Speed 50 | 50 115 115 Average Speed 153 | 123 169 125 Slowest Speed 550 | 190 550 130 Overloaded Moves . | . . . Propulsion Burnouts . | . . . Robots Hopped . | . . . Potential Cave-ins . | . . . Cave-ins Triggered . | . . . Exploration Rate (%) 60 | 5 96 79 Regions Visited 2 Branch Regions 1 Pre-discovered Areas 4 | . 3 1 Known Exits Taken 1 | . 1 . Unknown Exits Taken 1 | 1 . . Scrap Searched 2 | . . 2 Spaces Dug 2 | . 2 . Terrain Destroyed 13 | . 13 . Melee . | . . . Projectile 2 | . 2 . AOE 11 | . 11 . Terrain Rammed . | . . . Walls Destroyed . | . . . Machines Disabled . | . . . Actions | -11 -10 -10 --------- Run | Yrd Mat Min Total 1707 | 108 1127 472 Wait 126 | . 97 29 Move 1430 | 84 930 416 Hop . | . . . Pick Up 25 | 9 15 1 Fast Attach 10 | 5 5 . Attach 9 | 2 5 2 Detach 2 | . 2 . Swap 18 | . 14 4 Drop 8 | . 8 . Fire 79 | 8 51 20 Melee . | . . . Ram . | . . . Kick . | . . . Crush . | . . . Escape Stasis . | . . . Rewire . | . . . Trap . | . . . Miscellaneous . | . . . Route ------- -11/Scrapyard -10/Materials (discovered 6 exits: *Mat x3 / *Min x2 / *Sub) -10/Mines (discovered 4 exits: *Mat x2 / [*Exi] / Sub) History --------- Turn | Location | Event 8 | -11/Scrapyard | Discovered new exit (range 15) 148 | -11/Scrapyard | Entered Materials 247 | -10/Materials | Discovered new exit (range 11) 311 | -10/Materials | Build established: Mutant 359 | -10/Materials | Discovered new exit (range 10) 688 | -10/Materials | Discovered new exit (range 9) 802 | -10/Materials | Discovered new exit (range 6) 865 | -10/Materials | Learned location of 1 exit from Recycling 897 | -10/Materials | Identified exit to Materials 920 | -10/Materials | Identified exit to Mines 920 | -10/Materials | Identified exit to Subcaves 936 | -10/Materials | Learned location of 1 exit from Recycling 937 | -10/Materials | Learned 8 Materials zone layouts 938 | -10/Materials | Learned Storage security intel 948 | -10/Materials | Learned location of Storage (-7) 1734 | -10/Materials | Repaired Lgt. EM Pulse Cannon 1768 | -10/Materials | Repaired Lgt. EM Pulse Cannon? 1855 | -10/Materials | Lost 3 parts (1p2n) 2019 | -10/Materials | Entered Mines 2121 | -10/Mines | Core integrity fell below 50% 2202 | -10/Mines | Discovered exit to Materials (range 7) 2415 | -10/Mines | Discovered exit to Materials (range 7) 2433 | -10/Mines | Deemed a non-threat by the Exiles lab entrance 2433 | -10/Mines | Discovered new exit (range 5) 2512 | -10/Mines | Assembled infested the area 2517 | -10/Mines | Assisted by a Guerilla fighting off Assembled 2624 | -10/Mines | Core integrity fell below 20% 2635 | -10/Mines | Destroyed by as-35967 with Assembled Blade Last Messages --------------- 02583_ as-06100 knocked back. 02589_ as-74498 knocked back. 02592_ Com. Wheel destroyed. 02593_ Imp. Terrain Scanner destroyed. 02593_ System corrupted by crushing effect (+3). 02595_ as-06100 destroyed. 02598_ Destroyed Asb. Hover Unit. 02598_ as-74498 knocked back. 02601_ as-74498 destroyed. 02605_ Acquired 8 matter. 02606_ System corrupted: Matter fused (-8). 02606_ Acquired 3 matter. 02610_ as-92515 destroyed. 02613_ Acquired 14 matter. 02614_ The unstable cave ceiling collapses. 02614_ Acquired 2 matter. 02622_ as-47258 destroyed. 02631_ as-08882 knocked back. 02632_ Lgt. Treads destroyed. 02635_ as-13235 knocked back. Map ----- +----------------------------------------------------+ | | | | | | | | | | | | | ?????????????????????????????????? | | ?????????????????????????????????? | | ?????????????????????#???????????? | | ???????????#?????????????????????? | | ???????????????????#?????????????? | | ?????????????????????? ??????????? | | ???????????#???????? ????????????? | | ???????????????????? ????????????? | | ???????????????? ????? ??????????? | | ???????????????? ????????????????? | | ????????????????????????#????????? | | ????????????????????#????????????? | | ????????????????? ????#########?#? | | ????????????? ?? ?????# #??? | | ??????????????????????# """ #??? | | ?????????????????#????# """ #??? | | ??????????????????????# """ #??? | | ?????????? ???????????# a #??? | | ??????????????????# ##a#####??? | | ????????????? ? ?#@#??#???? | | ??????????? # # ## # #???#??? | | ??????????### # % %%%a#??????? | | ?????????????#" $ =%# ###?????#? | | ?????????#???# ]# #????#????? | | ???????????? #?????????? | | ???#???????## #?????????? | | ???????????#"# ##### #?????#???? | | ????????????#####????# #?????????? | | ????????????#??????#?# #?#?#?????? | | ?????????????????????# #????????#? | | ??????????#???####???# #????????#? | | ?????????????## ##??# #?????????? | | ????????###### ##?# #?????????? | | ????????# ##?# #?????????? | | ??????#?# ##### ### #?????????? | | ??????????????## #?????????? | | ???????? ??????## #?????????? | | ??????????#??#??## ##??#?????? | | ?????????#???????# #????????? | | ????#????????????# ##???????? | | ???#???? #???????# #??#?#??? | | ???????? #???#???## #??#????? | | #??????? #????#???## #????#??? | | #####?? #?????????### ##???????? | +----------------------------------------------------+ Best States ------------- Heat Dissipation 25 Energy Generation 10 Energy Capacity 250 Matter Stores 300 Matter Capacity 300 Sight Range 16 Terrain Scan Range 16 Terrain Scan Density 10 Evasion (%) 55 Recoil Reduction 1 Item Schematics ----------------- None Robot Schematics ------------------ None Fabricated ------------ Nothing Repaired ---------- Lgt. EM Pulse Cannon | 71% | -10/Materials Lgt. EM Pulse Cannon | 51% | -10/Materials Studied --------- None Alien Tech Used ----------------- None Achievements -------------- None Challenges ------------ None Game ------ Seed ZhirovMachineSegregator Manual? 0 Play Time 00:18:59 Cumulative 710.2 hours Start 2025.11.20 @ 00:08:39 End 2025.11.20 @ 00:30:05 Sessions 1 Manual Loads 0 Difficulty Rogue Special Mode None Game No. 496 Rogue 496 Adventurer 0 Explorer 0 Win Type - Total 1 Types 1/0/0/0/0/0/0/0/0/0 Lore% 68 Gallery% 67 Achievement% 45 Wizard Run 0 Options --------- Layout 1 ASCII 0 Keyboard 0 Movement Mouse Keybinds 0 Fullscreen 1 Font 20/SmallcapsGlow Map View 54x42 Zoom Use 0% Tactical HUD 1 Map Filters NONE Filters NONE Steam 1 RUN: 92d36608-3587-4baf-ba25-4eb010c5e424